Workbook

Sheet Tool Room List
D2: GRI | E2: Air
B6: CCode | C6: Loc | D6: BCode | E6: Description | F6: VPN | G6: Invty | H6: Order | I6: Ship | J6: Return | K6: Lost | L6: Price | M6: CostT | N6: LostT
B7: W1-802 | C7: B23 | D7: AIR0001 | E7: AIR CHIPPING HAMMER-(WITH CHISELS) | F7: CH3 | G7: =RANDBETWEEN(10,99) -> 47 | H7: 45 | I7: 99 | J7: 98 | K7: 25 | L7: 360.2 | M7: =Table1[[#This Row],[Ship]]*Table1[[#This Row],[Price]] -> 35659.8 | N7: =Table1[[#This Row],[Lost]]*Table1[[#This Row],[Price]] -> 9005
B8: W1-400 | C8: R.R. | D8: BME 001 | E8: SEED SPREADER | G8: 95 | H8: 61 | I8: 85 | J8: 46 | K8: 82 | L8: 0 | M8: =Table1[[#This Row],[Ship]]*Table1[[#This Row],[Price]] -> 0 | N8: =Table1[[#This Row],[Lost]]*Table1[[#This Row],[Price]] -> 0
B9: W1-400 | C9: CUB.1 | D9: CNS0001 | E9: DUCK TAPE "ROLLS" | F9: ELE206 | G9: 52 | H9: 36 | I9: 93 | J9: 74 | K9: 90 | L9: 3.11 | M9: =Table1[[#This Row],[Ship]]*Table1[[#This Row],[Price]] -> 289.23 | N9: =Table1[[#This Row],[Lost]]*Table1[[#This Row],[Price]] -> 279.9
B10: W1-802 | C10: B12 | D10: FIT0002 | E10: CHICAGO FITTINGS - Y | F10: DIXAM10 | G10: 78 | H10: 22 | I10: 48 | J10: 89 | K10: 49 | L10: 9.96 | M10: =Table1[[#This Row],[Ship]]*Table1[[#This Row],[Price]] -> 478.08 | N10: =Table1[[#This Row],[Lost]]*Table1[[#This Row],[Price]] -> 488.04
B11: W1-400 | C11: B12 | D11: GRI0001 | E11: BURR BITS - CHRISTMAS TREE 1/4" ARBOR | F11: DRI SG-1 | G11: 27 | H11: 56 | I11: 79 | J11: 57 | K11: 61 | L11: 6.78 | M11: =Table1[[#This Row],[Ship]]*Table1[[#This Row],[Price]] -> 535.62 | N11: =Table1[[#This Row],[Lost]]*Table1[[#This Row],[Price]] -> 413.58
B12: W1-850 | C12: E31 | D12: HTL0001 | E12: ALLEN PACK (METRIC) | F12: 13609 | G12: 46 | H12: 10 | I12: 23 | J12: 99 | K12: 84 | L12: 8.44 | M12: =Table1[[#This Row],[Ship]]*Table1[[#This Row],[Price]] -> 194.12 | N12: =Table1[[#This Row],[Lost]]*Table1[[#This Row],[Price]] -> 708.96
B13: W1-802 | C13: C26 | D13: LIT0001 | E13: BOILER LIGHT | G13: 76 | H13: 85 | I13: 84 | J13: 99 | K13: 91 | L13: 0 | M13: =Table1[[#This Row],[Ship]]*Table1[[#This Row],[Price]] -> 0 | N13: =Table1[[#This Row],[Lost]]*Table1[[#This Row],[Price]] -> 0
B14: Q1-250 | C14: F.CAB | D14: QC0001 | E14: DYE CHECK - CLEANER | F14: MAGNAFLUX | G14: 38 | H14: 88 | I14: 71 | J14: 90 | K14: 46 | L14: 2.24 | M14: =Table1[[#This Row],[Ship]]*Table1[[#This Row],[Price]] -> 159.04 | N14: =Table1[[#This Row],[Lost]]*Table1[[#This Row],[Price]] -> 103.04
B15: W1-802 | C15: A12 | D15: RIG0001 | E15: BEAM CLAMP | G15: 73 | H15: 26 | I15: 34 | J15: 80 | K15: 67 | L15: 0 | M15: =Table1[[#This Row],[Ship]]*Table1[[#This Row],[Price]] -> 0 | N15: =Table1[[#This Row],[Lost]]*Table1[[#This Row],[Price]] -> 0
B16: W1-400 | C16: SAFE | D16: STY0001 | E16: AIR MONITOR 4 GAS LEL,CO2,H2S,O2 | G16: 61 | H16: 66 | I16: 33 | J16: 73 | K16: 73 | L16: 0 | M16: =Table1[[#This Row],[Ship]]*Table1[[#This Row],[Price]] -> 0 | N16: =Table1[[#This Row],[Lost]]*Table1[[#This Row],[Price]] -> 0
B17: W1-802 | C17: B00-C.C. | D17: TIG0001 | E17: TIG RIG WP-17FV 25' COMPLETE W/50' GAS HOSE | G17: 98 | H17: 94 | I17: 76 | J17: 88 | K17: 77 | L17: 0 | M17: =Table1[[#This Row],[Ship]]*Table1[[#This Row],[Price]] -> 0 | N17: =Table1[[#This Row],[Lost]]*Table1[[#This Row],[Price]] -> 0
B18: W1-802 | C18: B42 | D18: WLD0001 | E18: ARC GOUGE RIG K3000 | G18: 68 | H18: 94 | I18: 51 | J18: 30 | K18: 12 | L18: 0 | M18: =Table1[[#This Row],[Ship]]*Table1[[#This Row],[Price]] -> 0 | N18: =Table1[[#This Row],[Lost]]*Table1[[#This Row],[Price]] -> 0
B19: W1-802 | C19: B12 | D19: FIT0002 | E19: SEED | G19: 57 | H19: 83 | I19: 52 | J19: 33 | K19: 31 | M19: =Table1[[#This Row],[Ship]]*Table1[[#This Row],[Price]] -> 0 | N19: =Table1[[#This Row],[Lost]]*Table1[[#This Row],[Price]] -> 0
B20: W1-802 | C20: B12 | D20: GRI0001 | E20: Clamp | G20: =RANDBETWEEN(10,99) -> 35 | H20: 19 | I20: 54 | J20: 33 | K20: 42 | M20: =Table1[[#This Row],[Ship]]*Table1[[#This Row],[Price]] -> 0 | N20: =Table1[[#This Row],[Lost]]*Table1[[#This Row],[Price]] -> 0
B21: W1-802 | C21: E31 | D21: HTL0001 | E21: Duck | G21: 67 | H21: 50 | I21: 79 | J21: 76 | K21: 38 | M21: =Table1[[#This Row],[Ship]]*Table1[[#This Row],[Price]] -> 0 | N21: =Table1[[#This Row],[Lost]]*Table1[[#This Row],[Price]] -> 0
B22: W1-802 | C22: C26 | D22: LIT0001 | E22: Dye | G22: 63 | H22: 29 | I22: 22 | J22: 73 | K22: 22 | M22: =Table1[[#This Row],[Ship]]*Table1[[#This Row],[Price]] -> 0 | N22: =Table1[[#This Row],[Lost]]*Table1[[#This Row],[Price]] -> 0
B23: Total | D23: =SUBTOTAL(103,Table1[BCode]) -> 16 | G23: =SUBTOTAL(109,Table1[Invty]) -> 981 | H23: =SUBTOTAL(109,Table1[Order]) -> 864 | I23: =SUBTOTAL(109,Table1[Ship]) -> 983 | J23: =SUBTOTAL(109,Table1[Return]) -> 1138 | K23: =SUBTOTAL(109,Table1[Lost]) -> 890 | L23: =SUBTOTAL(109,Table1[Price]) -> 390.73 | M23: =SUBTOTAL(109,Table1[CostT]) -> 37315.89 | N23: =SUBTOTAL(109,Table1[LostT]) -> 10998.52

Sheet Aux
B3: Term | C3: Key
B4: AIR | C4: Duck
B5: BME | C5: Seed
B6: CNS | C6: Dye
B7: FIT | C7: Clamp
B8: GRI | C8: Bits
B9: HTL | C9: Air
B10: LIT
B11: QC
B12: RIG
B13: STY
B14: TIG
B15: WLD
